{"text_format":"1","workbook":"xlsx","n_sheets":3,"sheets":["Relación de gastos","Relación de ingresos","Gastos e ingresos"],"not_rendered":{"charts":0,"images":3,"macros":1,"external_links":0,"defined_names":8,"comments":3,"pivot_tables":0},"unopened":[],"bounds":{"document_bytes":16777216,"sheet_cells":100000,"rows_first":2000,"rows_last":500,"rows_between":2000,"halvings":0,"cell_chars":16384,"cell_head_chars":4096},"cells_cut":0,"cells_raw":0,"read":"whole","date_system":"1900"}

{"sheet":"Relación de gastos","index":0,"n_rows":117,"n_cols":10,"rows_kept":117,"cut":false,"hidden":false,"merged":[[29,0,29,10],[22,0,22,10],[23,9,23,10],[24,9,24,10],[25,9,25,10],[26,9,26,10],[27,0,27,6],[90,0,90,2],[90,3,90,6],[90,9,90,10],[85,9,85,10],[86,9,86,10],[87,9,87,10],[88,9,88,10],[89,0,89,6],[89,9,89,10],[81,9,81,10],[82,9,82,10],[83,0,83,6],[83,9,83,10],[84,0,84,10],[77,0,77,6],[77,9,77,10],[78,0,78,10],[49,9,49,10],[50,9,50,10],[51,9,51,10],[52,9,52,10],[53,0,53,6],[53,9,53,10],[79,9,79,10],[80,9,80,10],[72,0,72,10],[73,9,73,10],[74,9,74,10],[75,9,75,10],[76,9,76,10],[67,9,67,10],[68,9,68,10],[69,9,69,10],[70,9,70,10],[71,0,71,6],[71,9,71,10],[65,0,65,6],[65,9,65,10],[66,0,66,10],[59,0,59,6],[59,9,59,10],[60,0,60,10],[61,9,61,10],[62,9,62,10],[55,9,55,10],[56,9,56,10],[57,9,57,10],[58,9,58,10],[7,3,7,4],[15,9,15,10],[15,0,15,6],[11,9,11,10],[12,9,12,10],[13,9,13,10],[10,0,10,10],[14,9,14,10],[9,0,9,10],[27,9,27,10],[91,0,91,5],[91,9,91,10],[95,0,95,10],[97,0,97,10],[98,0,98,10],[36,0,36,10],[37,9,37,10],[38,9,38,10],[39,9,39,10],[40,9,40,10],[30,0,30,10],[31,9,31,10],[34,9,34,10],[35,0,35,6],[35,9,35,10],[45,9,45,10],[46,9,46,10],[47,0,47,6],[47,9,47,10],[28,0,28,2],[28,3,28,6],[28,9,28,10],[41,0,41,6],[3,0,3,1],[7,1,8,1],[7,0,8,0],[6,0,6,4],[0,0,0,10],[4,0,4,1],[2,2,2,3],[3,2,3,3],[4,2,4,3],[2,0,2,1],[2,4,2,6],[3,4,3,6],[4,4,4,6],[7,2,8,2],[2,7,2,8],[3,7,3,8],[8,9,8,10],[7,9,7,10],[4,7,4,8],[20,9,20,10],[21,0,21,6],[21,9,21,10],[16,0,16,10],[17,9,17,10],[18,9,18,10],[19,9,19,10],[41,9,41,10],[42,0,42,10],[43,9,43,10],[115,0,115,11],[116,0,116,11],[100,0,100,10],[93,4,93,10],[104,0,104,11],[108,0,108,11],[109,0,109,11],[110,0,110,11],[111,0,111,11],[112,0,112,11],[114,0,114,11],[99,0,99,10],[105,0,105,10],[106,0,106,10],[107,0,107,11],[113,0,113,11],[44,9,44,10],[54,0,54,10],[48,0,48,10],[63,9,63,10],[64,9,64,10]]}
["Relación clasificada de todos los gastos realizados para la ejecución de la actividad subvencionada"]
[]
["Persona física/jurídica beneficiaria:         ",null,null,null,"Importe del coste total del proyecto:",null,null,null,null,"euros"]
["Código de subvención:",null,null,null,"Importe de la subvención otorgada:",null,null,6000,null,"euros"]
["Nombre del proyecto subvencionado:",null,null,null,"Periodo de ejecución del proyecto subvencionado:",null,null,null,null,"a"]
[]
["Gastos del proyecto/actividad/servicio subvencionado (*)"]
["Núm. De orden (0)","Número de documento: justificantes gasto personal (1), factura o recibo/ticket(2)","Concepto de la factura /\ndocumento probatorio equivalente","Emisor/a de la factura",null,"Fecha de emisión","Importe total de la factura","Importe imputable (dedicado) al proyecto(3)","Importe imputable a la subvención municipal(4)","Observaciones"]
[null,null,null,"NIF","Nombre","dd/mm/aaaa","euros","euros","euros"]
["GASTOS DIRECTOS (Aquellos que se identifican directamente con el proyecto)"]
["D.1  Nóminas y seguridad social IRPF (régimen general o régimen de autónomos) del personal propio vinculado al proyecto (máximo 40% subvención)"]
[]
[]
[]
[]
["Subtotal D.1",null,null,null,null,null,null,{"$f":"SUM(H12:H15)","v":0},{"$f":"SUM(I12:I15)","v":0},{"$f":"IF(I16<=H4*0.4,\"\",\"Error: D1 no puede superar el 40% de la subvención\")","v":""}]
["D.2 Trabajos realizados por profesionales y empresas externas directamente vinculadas al proyecto subvencionado (diseño, implementación, formación y otras relacionadas con el desarrollo del proyecto)"]
[]
[]
[]
[]
["Subtotal D.2",null,null,null,null,null,null,{"$f":"SUM(H18:H21)","v":0},{"$f":"SUM(I18:I21)","v":0}]
["D.3 Cuotas de inscripción, alquiler de sistemas de software y hardware y mantenimiento"]
[]
[]
[]
[]
["Subtotal D.3",null,null,null,null,null,null,{"$f":"SUM(H24:H27)","v":0},{"$f":"SUM(I24:I27)","v":0}]
["TOTAL GASTOS DIRECTOS",null,null,"TOTAL GASTOS DIRECTOS",null,null,null,{"$f":"H16+H22+H28","v":0},{"$f":"I16+I22+I28","v":0}]
["GASTOS INDIRECTOS (no se pueden asignar directamente al proyecto sin utilizar algún % de asignación) (máximo 10% de subvención)"]
["I.1 Personal de apoyo al proyecto (Nóminas y seguridad social)"]
[]
[]
[]
[]
["Subtotal I1",null,null,null,null,null,null,{"$f":"SUM(H32:H35)","v":0},{"$f":"SUM(I32:I35)","v":0}]
["I.2  Seguros"]
[]
[]
[]
[]
["Subtotal I2",null,null,null,null,null,null,{"$f":"SUM(H38:H41)","v":0},{"$f":"SUM(I38:I41)","v":0}]
["I.3  Amortización"]
[]
[]
[]
[]
["Subtotal I3",null,null,null,null,null,null,{"$f":"SUM(H44:H47)","v":0},{"$f":"SUM(I44:I47)","v":0}]
["I.4  Alquiler de bienes inmuebles"]
[]
[]
[]
[]
["Subtotal I4",null,null,null,null,null,null,{"$f":"SUM(H50:H53)","v":0},{"$f":"SUM(I50:I53)","v":0}]
["I.5  Adquisición de materiales y bienes consumibles parcialmente imputables al proyecto"]
[]
[]
[]
[]
["Subtotal I5",null,null,null,null,null,null,{"$f":"SUM(H56:H59)","v":0},{"$f":"SUM(I56:I59)","v":0}]
["I.6  Mantenimiento de edificios y/o instalaciones"]
[]
[]
[]
[]
["Subtotal I6",null,null,null,null,null,null,{"$f":"SUM(H62:H65)","v":0},{"$f":"SUM(I62:I65)","v":0}]
["I.7  Comunicaciones (teléfono, correos, conexión a internet)"]
[]
[]
[]
[]
["Subtotal I7",null,null,null,null,null,null,{"$f":"SUM(H68:H71)","v":0},{"$f":"SUM(I68:I71)","v":0}]
["I.8  Gastos financieros"]
[]
[]
[]
[]
["Subtotal I8",null,null,null,null,null,null,{"$f":"SUM(H74:H77)","v":0},{"$f":"SUM(I74:I77)","v":0}]
["I.9  Suministros"]
[]
[]
[]
[]
["Subtotal I9",null,null,null,null,null,null,{"$f":"SUM(H80:H83)","v":0},{"$f":"SUM(I80:I83)","v":0}]
["I.10  Trabajo realizado por otras empresas, parcialmente imputables al proyecto (limpieza, seguridad...)"]
[]
[]
[]
[]
["Subtotal I10",null,null,null,null,null,null,{"$f":"SUM(H86:H89)","v":0},{"$f":"SUM(I86:I89)","v":0}]
["TOTAL GASTOS INDIRECTOS",null,null,"TOTAL GASTOS INDIRECTOS",null,null,null,{"$f":"+H36+H42+H48+H54+H60+H66+H72+H78+H84+H90","v":0},{"$f":"+I36+I42+I48+I54+I60+I66+I72+I78+I84+I90","v":0},{"$f":"IF(I91<=H4*0.1,\"\",\"Error: Gastos indirectos no pueden superar el 10% de la subvención\")","v":""}]
["TOTAL GASTOS",null,null,null,null,null,"TOTAL",{"$f":"H29+H91","v":0},{"$f":"I29+I91","v":0}]
[]
[]
["Notas:"]
["(*) Se deben relacionar todos los gastos del proyecto/actividad/servicio subvencionado. En caso de que el número de filas de cada concepto sea insuficiente puede insertar líneas dentro del mismo concepto seleccionando una celda verde y haciendo clic sobre el botón de insertar línea."]
["(0) El número de orden debe ser correlativo empezando por D.1.1, D1.2, D.1.3, D2.4, etc."]
["(1) Respecto a los gastos de recursos humanos, puede ser subvencionable el coste total salarial mensual, que corresponde a la suma de la retribución bruta que aparece en la nómina del trabajador/a más la cuota de la empresa a la Seg. Social. Los gastos de personal se justifican con la nómina del trabajador/a acompañada de los correspondientes RLC y RNT (anteriores TC1 y TC2) de la TGSS y el modelo 111 del IRPF."]
["(2) En caso de que el documento justificativo del resto de gastos, no sea una factura, sino otro documento probatorio equivalente, como un recibo o justificante (como por dietas o transporte público), indíquelo en la columna \"observaciones\""]
["(3) En caso de que un justificante incluya conceptos que no tienen relación con el proyecto/actividad/servicio para el que se ha otorgado la subvención, aquí sólo se tiene que indicar la parte que realmente se ha dedicado al proyecto ."]
["(4) En esta columna debe indicarse el importe total o parcial de la factura que se imputa a la subvención recibida del Ayuntamiento de Barcelona. El total imputado, en esta columna, debe ser igual al importe de la subvención recibida."]
[]
["Pulsa el icono para generar un documento PDF del libro"]
[]
["Modalidad Ad. Digitalización: Facilitar la transformación digital de las empresas y organización de la ESS"]
["1. La cuantía de la subvención otorgada no superará el 80% del gasto total del proyecto a subvencionar."]
["2.El importe máximo de subvención para la modalidad \"d\" del ámbito temático de Creación y consolidación (Ad) es 10.000€."]
["3.En caso de que la solicitud presentada sobrepase el importe máximo, se considerará como importe solicitado el máximo de lo establecido en la convocatoria."]
["4.Se limita con un máximo del 40% el importe de la subvención para gastos de personal propio que participa de forma directa y debidamente en el proyecto."]
["5.Sólo con carácter excepcional, los/las empresarios/as individuales que no tengan personas trabajadoras en plantilla podrán acreditar sus trabajos mediante una declaración responsable acompañada de las declaraciones IRPF (modelo 130) del ejercicio corriente. El precio/hora imputado al proyecto subvencionado no podrá superar la cantidad resultante de dividir los rendimientos anuales netos del empresario/a individual por 1800."]
["6.Los gastos de implantación de Software y hardware de cartelería y los sistemas de gestión informatizada no incluyen el gasto de compra."]
["7.En ningún caso se considerarán gastos subvencionables:\n> Los impuestos indirectos cuando sean susceptibles de recuperación o compensación.\n> Los gastos de inversión, incluidas las adquisiciones de bienes muebles.\n> Los gastos realizados con fecha anterior al inicio del proyecto y fecha posterior a la finalización del proyecto.\n> Otros gastos que se indiquen en la convocatoria."]
["8. Son imputables en esta modalidad los gastos indirectos, detallados en el apartado 13.3. de las bases reguladoras; con un máximo del 10% del importe de la subvención."]
["9. La retribución de las personas contratadas en el marco del proyecto subvencionado no puede ser inferior al Salario Mínimo Interprofesional (SMI), ni a la estipulada en el correspondiente convenio o marco normativo de referencia (punto 7 de las bases 2023: requisitos de los proyectos )."]
["10. Los proyectos subvencionados deben formentar actividades de interés público o social, las cuales deben ser gratuitas para las personas participantes o en ningún caso el precio debe suponer un obstáculo para su participación, buscando otras formas de acceso personas con dificultades económicas. En caso de que haya algún tipo de lucro, deberá revertir en las propias actividades subvencionadas."]
["11. El Ayuntamiento de Barcelona y sus entidades municipales en ningún caso subvencionarán el mismo proyecto, ejecutado durante el mismo período, por ningún otro procedimiento de concesión que no sea el regulado por las bases reguladoras."]
["12. El/la beneficiario/a no podrá alterar en ningún caso el destino de las subvenciones concedidas."]

{"sheet":"Relación de ingresos","index":1,"n_rows":72,"n_cols":10,"rows_kept":72,"cut":false,"hidden":false,"merged":[[66,0,66,3],[65,0,65,3],[65,6,65,9],[56,0,56,3],[50,0,50,3],[53,6,53,9],[52,6,52,9],[56,6,56,9],[50,6,50,9],[64,6,64,9],[59,6,59,9],[66,6,66,9],[60,6,60,9],[61,6,61,9],[62,6,62,9],[63,6,63,9],[0,0,0,9],[9,0,9,9],[15,0,15,9],[7,6,8,9],[10,6,10,9],[7,0,8,0],[11,6,11,9],[13,6,13,9],[3,2,3,3],[2,2,2,3],[6,0,6,3],[4,2,4,3],[7,2,7,3],[7,1,8,1],[14,0,14,3],[44,0,44,3],[38,0,38,3],[32,0,32,3],[14,6,14,9],[20,6,20,9],[28,6,28,9],[38,6,38,9],[37,6,37,9],[32,6,32,9],[31,6,31,9],[26,0,26,3],[20,0,20,3],[36,6,36,9],[34,6,34,9],[24,6,24,9],[29,6,29,9],[16,6,16,9],[22,6,22,9],[26,6,26,9],[25,6,25,9],[41,6,41,9],[40,6,40,9],[30,6,30,9],[23,6,23,9],[19,6,19,9],[18,6,18,9],[17,6,17,9],[42,6,42,9],[49,6,49,9],[58,6,58,9],[47,6,47,9],[46,6,46,9],[48,6,48,9],[44,6,44,9],[43,6,43,9]]}
["Detalle de todos los ingresos obtenidos y aportaciones del propio beneficiario para la ejecución de la actividad subvencionada"]
[]
[null,"Nombre de la persona física/jurídica beneficiaria:        ",{"$f":"IF('Relación de gastos'!C3:D3<>\"\",'Relación de gastos'!C3:D3,\"\")","v":""},null,"Importe del coste total del proyecto :",null,null,{"$f":"IF(+'Relación de gastos'!H3=\"\",\"\",+'Relación de gastos'!H3)","v":""},"euros"]
[null,"Código de subvención",{"$f":"IF('Relación de gastos'!C4:D4<>\"\",'Relación de gastos'!C4:D4,\"\")","v":""},null,"Importe de la subvención otorgada:",null,null,{"$f":"IF(+'Relación de gastos'!H4=\"\",\"\",+'Relación de gastos'!H4)","v":6000},"euros"]
[null,"Nombre del proyecto subvencionado",{"$f":"IF('Relación de gastos'!C5:D5<>\"\",'Relación de gastos'!C5:D5,\"\")","v":""},null,"Periodo de ejecución del proyecto subvencionado:",null,null,{"$f":"IF(+'Relación de gastos'!H5=\"\",\"\",+'Relación de gastos'!H5)","v":""},"a",{"$f":"IF(+'Relación de gastos'!K5=\"\",\"\",+'Relación de gastos'!K5)","v":""}]
[]
["Ingresos del proyecto/actividad/servicio subvencionado"]
["núm. De orden (0)","Concepto del ingreso","Emisor/a del ingreso",null,"Fecha de cobro\n(dd/mm/aaaa)","Importe","Observaciones"]
[null,null,"NIF","Nombre","(1)","euros"]
["A. Subvención municipal"]
[]
[]
[]
[]
[null,null,null,null,"Subtotal A",{"$f":"SUM(F11:F14)","v":0}]
["B. Subvenciones de otras administraciones"]
[]
[]
[]
[]
[null,null,null,null,"Subtotal B",{"$f":"SUM(F17:F20)","v":0}]
["C. Subvenciones de entes privados"]
[]
[]
[]
[]
[null,null,null,null,"Subtotal C",{"$f":"SUM(F23:F26)","v":0}]
["D. Recursos propios de la organización aplicados al proyecto"]
[]
[]
[]
[]
[null,null,null,null,"Subtotal D",{"$f":"SUM(F29:F32)","v":0}]
["E. Taquillaje"]
[]
[]
[]
[]
[null,null,null,null,"Subtotal E",{"$f":"SUM(F35:F38)","v":0}]
["F. Cuotas de inscripción"]
[]
[]
[]
[]
[null,null,null,null,"Subtotal F",{"$f":"SUM(F41:F44)","v":0}]
["G. Venta de Productos"]
[]
[]
[]
[]
[null,null,null,null,"Subtotal G",{"$f":"SUM(F47:F50)","v":0}]
["H. Publicidad y/o Esponsorización"]
[]
[]
[]
[]
[null,null,null,null,"Subtotal H",{"$f":"SUM(F53:F56)","v":0}]
["I. Otros ingresos"]
[]
[]
[]
[]
[]
[]
[]
[null,null,null,null,"Subtotal I",{"$f":"SUM(F59:F65)","v":0}]
["Total INGRESOS",null,null,null,"TOTAL",{"$f":"+F15+F21+F27+F33+F39+F45+F51+F57+F66","v":0}]
[]
[]
[null,"Nota:"]
[null,"(0) El número de orden debe ser correlativo empezando por el número A1, A2, A3, B4, etc."]
[null,"(1) En caso de que el ingreso esté pendiente cobro, indicar \"P. Cobro\""]

{"sheet":"Gastos e ingresos","index":2,"n_rows":68,"n_cols":11,"rows_kept":68,"cut":false,"hidden":false,"merged":[[10,0,11,1],[24,6,24,7],[25,6,25,7],[25,8,25,9],[17,2,18,2],[17,3,18,3],[10,8,11,8],[10,9,11,9],[10,2,11,2],[10,3,11,3],[10,6,11,7],[17,0,18,1],[13,1,14,1],[13,2,14,2],[13,3,14,3],[13,4,14,4],[4,5,4,6],[5,0,5,1],[5,2,5,3],[5,5,5,6],[9,6,9,7],[6,0,6,1],[6,2,6,3],[9,0,9,1],[4,0,4,1],[4,2,4,3],[38,0,38,10],[39,0,39,10],[33,0,33,10],[34,0,34,10],[35,0,35,10],[36,0,36,10],[37,0,37,10]]}
[]
[]
["Estado de los gastos realizados y de los ingresos obtenidos para la ejecución de la actividad subvencionada (*)"]
[]
["Nombre de la persona física/jurídica beneficiaria:",null,{"$f":"IF('Relación de gastos'!C3:D3<>\"\",'Relación de gastos'!C3:D3,\"\")","v":""},null,null,"Importe del coste total del proyecto:",null,{"$f":"'Relación de ingresos'!H3","v":""},"euros"]
["Código de subvención:",null,{"$f":"IF('Relación de gastos'!C4:D4<>\"\",'Relación de gastos'!C4:D4,\"\")","v":""},null,null,"Importe de la subvención otorgada:",null,{"$f":"'Relación de ingresos'!H4","v":6000},"euros"]
["Nombre del proyecto subvencionado:",null,{"$f":"IF('Relación de gastos'!C5:D5<>\"\",'Relación de gastos'!C5:D5,\"\")","v":""},null,null,"Periodo de ejecución del proyecto subvencionado:",null,null,{"$f":"'Relación de ingresos'!H5","v":""},"a",{"$f":"'Relación de ingresos'!J5","v":""}]
[]
["SUBVENCIONES PARA EL FORTALECIMIENTO DE LA ECONOMÍA SOCIAL Y SOLIDARIA Y LA INTERCOOPERACIÓN 2023"]
["GASTOS PREVISTOS",null,"importe en euros",null,"importe en euros",null,"INGRESOS PREVISTOS",null,"importe en euros"]
["Gastos directos\n(aquellas que se identifican directamente con el proyecto)",null,"Previsión inicial o reformulada ya aprobada (1)","Gastos realizados (2)","Diferencia\n",null,"Ingresos previstos",null,"Previsión inicial (1)","Ingresos obtenidos (3)"]
[null,null,null,null,"(2-1)"]
["Ad","D.1  Nóminas y seguridad social IRPF (régimen general o régimen de autónomos) del personal propio vinculado al proyecto (máximo 40% subvención)",null,{"$f":"'Relación de gastos'!H16","v":0},{"$f":"+C13-D13","v":0},null,"A.","Subvención municipal (importe solicitado a la instancia/otorgado)",null,{"$f":"'Relación de ingresos'!F15","v":0}]
[null,"D.2  Trabajos realizados por profesionales y empresas externas directamente vinculadas al proyecto subvencionado (diseño, implementación, formación y otras relacionadas con el desarrollo del proyecto)",null,{"$f":"'Relación de gastos'!H22","v":0},{"$f":"+C14-D14","v":0},null,"B.","Subvenciones de otras administraciones",null,{"$f":"'Relación de ingresos'!F21","v":0}]
[null,null,null,null,null,null,"C.","Subvenciones de entes privados",null,{"$f":"'Relación de ingresos'!F27","v":0}]
[null,"D.3 Cuotas de inscripción, alquiler de sistemas de software y hardware y mantenimiento",null,{"$f":"'Relación de gastos'!H28","v":0},{"$f":"+C16-D16","v":0},null,"D.","Recursos propios de la organización aplicados al proyecto",null,{"$f":"'Relación de ingresos'!F33","v":0}]
[null,"Total Gastos Directos   ",{"$f":"SUM(C13:C16)","v":0},{"$f":"SUM(D13:D16)","v":0},{"$f":"SUM(E13:E16)","v":0},null,"E.","Taquillaje",null,{"$f":"'Relación de ingresos'!F39","v":0}]
["Gastos indirectos (se podrán asignar al proyecto utilizando un porcentaje de asignación)",null,"Previsión inicial o reformulada ya aprobada (1)","Gastos realizados (2)","Diferencia\n",null,"F.","Cuotas de inscripción",null,{"$f":"'Relación de ingresos'!F45","v":0}]
[null,null,null,null,"(2-1)",null,"G.","Venta de Productos",null,{"$f":"'Relación de ingresos'!F51","v":0}]
[null,"I.1 Personal de apoyo al proyecto subvencionado (Nóminas y seguridad social)",null,{"$f":"'Relación de gastos'!H36","v":0},{"$f":"+C20-D20","v":0},null,"H","Publicidad y/o Esponsorización",null,{"$f":"'Relación de ingresos'!F57","v":0}]
[null,"I.2  Seguros",null,{"$f":"'Relación de gastos'!H42","v":0},0,null,"I.","Otros ingresos",null,{"$f":"'Relación de ingresos'!F66","v":0}]
[null,"I.3  Amortización",null,{"$f":"'Relación de gastos'!H48","v":0},0,null,null,"Total Ingresos",{"$f":"SUM(I13:I21)","v":0},{"$f":"SUM(J13:J21)","v":0}]
[null,"I.4  Alquiler de bienes inmuebles",null,{"$f":"'Relación de gastos'!H54","v":0},0]
[null,"I.5  Adquisición de materiales y bienes consumibles parcialmente imputables al proyecto",null,{"$f":"'Relación de gastos'!H60","v":0},0]
[null,"I.6  Mantenimiento de edificios y/o instalaciones",null,{"$f":"'Relación de gastos'!H66","v":0},0,null,"Ingresos menos gastos",null,{"$f":"+I22-C31","v":0},{"$f":"+J22-D31","v":0}]
[null,"I.7  Comunicaciones (teléfono, correos, conexión a internet)",null,{"$f":"'Relación de gastos'!H72","v":0},0,null,"Desviación de Gastos(4)",null,"Desviación de ingresos (4)"]
[null,"I.8  Gastos financieros",null,{"$f":"'Relación de gastos'!H78","v":0},0,null,"Importe"," % ","Importe","%"]
[null,"I.9 Suministros ",null,{"$f":"'Relación de gastos'!H84","v":0},0,null,{"$f":"D31-C31","v":0},{"$f":"D31/C31","v":{"$error":"#DIV/0!"}},{"$f":"J22-I22","v":0},{"$f":"J22/I22","v":{"$error":"#DIV/0!"}}]
[null,"I.10  Trabajo realizado por otras empresas, parcialmente imputables al proyecto subvencionable (limpieza, seguridad...)",null,{"$f":"'Relación de gastos'!H90","v":0},0,null,null,null,"% subvencionado inicialmente o después de reformulación (5)",{"$f":"I13/I22","v":{"$error":"#DIV/0!"}}]
[null,"Total Gastos Indirectos   (Max. 10% subv)",{"$f":"SUM(C20:C29)","v":0},{"$f":"SUM(D20:D29)","v":0},{"$f":"SUM(E20:E29)","v":0},null,null,null,"% subvencionado después de justificación (6)",{"$f":"+J13/J22","v":{"$error":"#DIV/0!"}}]
[null,"Total Gastos ",{"$f":"C17+C30","v":0},{"$f":"D17+D30","v":0},{"$f":"E17+E30","v":0}]
[]
["Notas:"]
["(*) Las columnas sombreadas en color se irán rellenando automáticamente a partir de los datos introducidos en los documentos de gastos -detalle e ingresos-detalle. Por tanto, no imprima esta hoja hasta haber rellenado los demás."]
["(1) Previsión inicial o reformulación ya aprobada = Se debe indicar la previsión inicial de gastos y de ingresos según lo indicado en el proyecto original en el \"plan de viabilidad económica del proyecto - presupuesto general\" . En caso de que ya se haya aprobado una reformulación, deben indicarse las cantidades reformuladas."]
["(2) Gastos reales = Coste real total del proyecto subvencionado. Automáticamente se introducirán los subtotales de los gastos relacionados en la hoja Gastos-detalle."]
["(3) Ingresos reales = Total de ingresos obtenidos para la realización del proyecto subvencionado. Automáticamente se introducirán los subtotales de los ingresos relacionados en la hoja Ingresos-detalle"]
["(4) Desviación: En el caso de los gastos, la desviación es la diferencia entre gastos reales y la previsión inicial de gastos; y en el caso de ingresos, la diferencia entre los ingresos reales y la previsión inicial de ingresos."]
["(5) % financiación municipal inicial o después de reformulación = porcentaje que suponen las subvenciones municipales (A) respecto del total de ingresos del proyecto subvencionado."]
["(6) % financiación municipal después de justificación = porcentaje que supone la subvención municipal (A) respecto al total de ingresos del proyecto subvencionado. En caso de existir una desviación siempre debe motivarse."]
[]
[]
[]
[]
[]
[]
[]
[]
[]
[]
[]
[]
[]
[]
[]
[]
[]
[]
[]
[]
[]
[]
[]
[]
[]
[]
[]
[null,null,0]